[Event "Titled Tuesday Blitz June 20 Early 2023"]
[White "Nikolova, Adriana"]
[Black "Tristan, Leonardo"]
[WhiteFideId "2908689"]
[BlackFideId "113816"]
[WhiteElo "2213"]
[BlackElo "2461"]
[Result "0-1"]
[Round "2"]
[TimeControl "180+2"]
[Date "2023.06.20"]
[WhiteClock "0:00:00"]
[BlackClock "0:00:02"]
[Board "83"]

1. d4 {[%clk 0:03:00]}  d5 {[%clk 0:02:59]} 2. Bf4 {[%clk 0:03:01]}  Nf6 {[%clk 0:02:58]} 3. e3 {[%clk 0:02:58]}  c5 {[%clk 0:02:58]} 4. c3 {[%clk 0:02:58]}  Nc6 {[%clk 0:02:59]} 5. Nd2 {[%clk 0:02:58]}  Bf5 {[%clk 0:02:57]} 6. Qb3 {[%clk 0:02:56]}  Qd7 {[%clk 0:02:57]} 7. Ngf3 {[%clk 0:02:56]}  e6 {[%clk 0:02:57]} 8. Ne5 {[%clk 0:02:51]}  Nxe5 {[%clk 0:02:57]} 9. dxe5 {[%clk 0:02:51]}  c4 {[%clk 0:02:58]} 10. Nxc4 {[%clk 0:02:33]}  dxc4 {[%clk 0:02:58]} 11. Bxc4 {[%clk 0:02:33]}  O-O-O {[%clk 0:02:59]} 12. exf6 {[%clk 0:02:14]}  Qd2+ {[%clk 0:02:59]} 13. Kf1 {[%clk 0:02:14]}  gxf6 {[%clk 0:03:00]} 14. Kg1 {[%clk 0:01:55]}  Rg8 {[%clk 0:02:50]} 15. Bg3 {[%clk 0:01:47]}  Bc5 {[%clk 0:02:36]} 16. Bf1 {[%clk 0:01:38]}  Rg4 {[%clk 0:01:43]} 17. Qb5 {[%clk 0:01:07]}  Bb6 {[%clk 0:01:18]} 18. a4 {[%clk 0:00:51]}  Rd5 {[%clk 0:00:39]} 19. Qe8+ {[%clk 0:00:49]}  Rd8 {[%clk 0:00:39]} 20. Qb5 {[%clk 0:00:46]}  Bc7 {[%clk 0:00:36]} 21. Qc5 {[%clk 0:00:28]}  e5 {[%clk 0:00:36]} 22. Qxa7 {[%clk 0:00:24]}  Qxb2 {[%clk 0:00:36]} 23. Qa8+ {[%clk 0:00:18]}  Bb8 {[%clk 0:00:33]} 24. Re1 {[%clk 0:00:13]}  Qxc3 {[%clk 0:00:21]} 25. Re2 {[%clk 0:00:07]}  Rd1 {[%clk 0:00:19]} 26. h3 {[%clk 0:00:04]}  Rxf1+ {[%clk 0:00:07]} 27. Kh2 {[%clk 0:00:04]}  Rxh1+ {[%clk 0:00:07]} 28. Kxh1 {[%clk 0:00:05]}  Rb4 {[%clk 0:00:07]} 29. Kh2 {[%clk 0:00:03]}  Qc4 {[%clk 0:00:05]} 30. Rd2 {[%clk 0:00:00]}  Rxa4 {[%clk 0:00:02]} 0-1


[Site "https://www.chess.com"]

[Event "Titled Tuesday Blitz June 20 Early 2023"]
[White "Andreev, Konstantin"]
[Black "Fus, Jakub"]
[WhiteFideId "24239305"]
[BlackFideId "1193023"]
[WhiteElo "2106"]
[BlackElo "2335"]
[Result "0-1"]
[Round "2"]
[TimeControl "180+2"]
[Date "2023.06.20"]
[WhiteClock "0:00:03"]
[BlackClock "0:00:07"]
[Board "86"]

1. e4 {[%clk 0:03:00]}  e5 {[%clk 0:02:58]} 2. Nf3 {[%clk 0:03:01]}  Nc6 {[%clk 0:02:59]} 3. Bc4 {[%clk 0:03:01]}  Bc5 {[%clk 0:02:58]} 4. c3 {[%clk 0:03:02]}  Nf6 {[%clk 0:02:58]} 5. d4 {[%clk 0:03:02]}  exd4 {[%clk 0:02:58]} 6. b4 {[%clk 0:03:02]}  Bb6 {[%clk 0:02:51]} 7. e5 {[%clk 0:03:00]}  d5 {[%clk 0:02:50]} 8. exf6 {[%clk 0:02:59]}  dxc4 {[%clk 0:02:49]} 9. Qe2+ {[%clk 0:03:00]}  Be6 {[%clk 0:02:49]} 10. b5 {[%clk 0:03:00]}  Nb4 {[%clk 0:02:10]} 11. cxb4 {[%clk 0:02:57]}  Qxf6 {[%clk 0:02:09]} 12. O-O {[%clk 0:02:52]}  O-O {[%clk 0:01:51]} 13. a4 {[%clk 0:02:53]}  Bd5 {[%clk 0:01:40]} 14. Qe5 {[%clk 0:02:34]}  Qxe5 {[%clk 0:01:14]} 15. Nxe5 {[%clk 0:02:32]}  Rfe8 {[%clk 0:01:15]} 16. Bf4 {[%clk 0:02:23]}  d3 {[%clk 0:01:10]} 17. Nf3 {[%clk 0:02:11]}  Bxf3 {[%clk 0:00:51]} 18. gxf3 {[%clk 0:02:12]}  Bd4 {[%clk 0:00:52]} 19. Ra3 {[%clk 0:02:09]}  Re2 {[%clk 0:00:49]} 20. Nc3 {[%clk 0:01:41]}  Rc2 {[%clk 0:00:47]} 21. Nd5 {[%clk 0:01:41]}  Re8 {[%clk 0:00:32]} 22. Ne3 {[%clk 0:01:38]}  Bxe3 {[%clk 0:00:26]} 23. Bxe3 {[%clk 0:01:39]}  c3 {[%clk 0:00:24]} 24. Bd4 {[%clk 0:01:13]}  d2 {[%clk 0:00:22]} 25. Bxc3 {[%clk 0:01:09]}  Re2 {[%clk 0:00:20]} 26. Kg2 {[%clk 0:01:04]}  Rxf2+ {[%clk 0:00:13]} 27. Rxf2 {[%clk 0:00:44]}  d1=Q {[%clk 0:00:13]} 28. Be5 {[%clk 0:00:36]}  Rxf2+ {[%clk 0:00:10]} 29. Kxf2 {[%clk 0:00:37]}  Qc2+ {[%clk 0:00:09]} 30. Kg3 {[%clk 0:00:36]}  f6 {[%clk 0:00:10]} 31. Bf4 {[%clk 0:00:33]}  g5 {[%clk 0:00:10]} 32. Be3 {[%clk 0:00:30]}  b6 {[%clk 0:00:10]} 33. a5 {[%clk 0:00:27]}  Kf7 {[%clk 0:00:09]} 34. axb6 {[%clk 0:00:27]}  axb6 {[%clk 0:00:10]} 35. Ra7 {[%clk 0:00:25]}  Ke6 {[%clk 0:00:10]} 36. Ra8 {[%clk 0:00:25]}  h5 {[%clk 0:00:10]} 37. Rd8 {[%clk 0:00:22]}  Kf7 {[%clk 0:00:10]} 38. Rd7+ {[%clk 0:00:22]}  Ke6 {[%clk 0:00:10]} 39. Rd4 {[%clk 0:00:23]}  h4+ {[%clk 0:00:10]} 40. Kh3 {[%clk 0:00:21]}  Qf5+ {[%clk 0:00:09]} 41. Kg2 {[%clk 0:00:22]}  Qxb5 {[%clk 0:00:09]} 42. f4 {[%clk 0:00:17]}  Qe2+ {[%clk 0:00:07]} 43. Bf2 {[%clk 0:00:15]}  h3+ {[%clk 0:00:04]} 44. Kg3 {[%clk 0:00:16]}  Qf1 {[%clk 0:00:04]} 45. Kf3 {[%clk 0:00:14]}  Qg2+ {[%clk 0:00:05]} 46. Ke3 {[%clk 0:00:14]}  Qxh2 {[%clk 0:00:05]} 47. fxg5 {[%clk 0:00:10]}  fxg5 {[%clk 0:00:06]} 48. Re4+ {[%clk 0:00:10]}  Kf5 {[%clk 0:00:07]} 49. Rc4 {[%clk 0:00:08]}  Qg2 {[%clk 0:00:07]} 50. Rxc7 {[%clk 0:00:06]}  h2 {[%clk 0:00:07]} 51. Rf7+ {[%clk 0:00:03]}  Kg4 {[%clk 0:00:07]} 0-1


[Site "https://www.chess.com"]

[Event "Titled Tuesday Blitz June 20 Early 2023"]
[White "Morefield, Jason"]
[Black "Womacka, Mathias"]
[WhiteFideId "30920825"]
[BlackFideId "4611390"]
[WhiteElo "2171"]
[BlackElo "2377"]
[Result "1-0"]
[Round "2"]
[TimeControl "180+2"]
[Date "2023.06.20"]
[WhiteClock "0:00:25"]
[BlackClock "0:00:10"]
[Board "87"]

1. e4 {[%clk 0:03:00]}  c5 {[%clk 0:02:59]} 2. Nf3 {[%clk 0:03:01]}  d6 {[%clk 0:02:59]} 3. d4 {[%clk 0:03:01]}  cxd4 {[%clk 0:03:00]} 4. Nxd4 {[%clk 0:03:02]}  Nf6 {[%clk 0:02:59]} 5. Nc3 {[%clk 0:03:03]}  a6 {[%clk 0:03:00]} 6. Be2 {[%clk 0:03:03]}  e5 {[%clk 0:02:59]} 7. Nb3 {[%clk 0:03:02]}  Be7 {[%clk 0:03:00]} 8. Be3 {[%clk 0:03:02]}  Be6 {[%clk 0:02:58]} 9. Nd5 {[%clk 0:03:03]}  Nxd5 {[%clk 0:02:56]} 10. exd5 {[%clk 0:03:04]}  Bf5 {[%clk 0:02:56]} 11. c4 {[%clk 0:02:59]}  Nd7 {[%clk 0:02:51]} 12. O-O {[%clk 0:02:58]}  O-O {[%clk 0:02:50]} 13. f4 {[%clk 0:02:57]}  exf4 {[%clk 0:02:43]} 14. Bxf4 {[%clk 0:02:58]}  Bg6 {[%clk 0:02:42]} 15. Qd2 {[%clk 0:02:57]}  Bf6 {[%clk 0:02:32]} 16. Bxd6 {[%clk 0:02:52]}  Re8 {[%clk 0:02:22]} 17. c5 {[%clk 0:02:42]}  Ne5 {[%clk 0:02:10]} 18. Rae1 {[%clk 0:02:34]}  b6 {[%clk 0:02:08]} 19. Kh1 {[%clk 0:02:28]}  bxc5 {[%clk 0:02:06]} 20. Bxc5 {[%clk 0:02:29]}  a5 {[%clk 0:01:52]} 21. Bb5 {[%clk 0:02:24]}  Nd7 {[%clk 0:01:44]} 22. Rxe8+ {[%clk 0:02:23]}  Qxe8 {[%clk 0:01:45]} 23. Bd4 {[%clk 0:02:10]}  Bxd4 {[%clk 0:01:37]} 24. Qxd4 {[%clk 0:02:11]}  Qd8 {[%clk 0:01:32]} 25. d6 {[%clk 0:02:02]}  Nf6 {[%clk 0:01:19]} 26. Nc5 {[%clk 0:01:50]}  Qb6 {[%clk 0:01:15]} 27. a4 {[%clk 0:01:49]}  Rd8 {[%clk 0:01:13]} 28. d7 {[%clk 0:01:42]}  h6 {[%clk 0:01:00]} 29. b4 {[%clk 0:01:35]}  axb4 {[%clk 0:00:52]} 30. Qxb4 {[%clk 0:01:36]}  Nxd7 {[%clk 0:00:39]} 31. Nxd7 {[%clk 0:01:30]}  Rxd7 {[%clk 0:00:39]} 32. a5 {[%clk 0:01:25]}  Qd4 {[%clk 0:00:30]} 33. Qxd4 {[%clk 0:01:02]}  Rxd4 {[%clk 0:00:30]} 34. a6 {[%clk 0:00:43]}  Be4 {[%clk 0:00:30]} 35. Ra1 {[%clk 0:00:31]}  Rd2 {[%clk 0:00:22]} 36. Bf1 {[%clk 0:00:30]}  g5 {[%clk 0:00:18]} 37. a7 {[%clk 0:00:24]}  Ba8 {[%clk 0:00:18]} 38. Rb1 {[%clk 0:00:22]}  Kg7 {[%clk 0:00:15]} 39. Rb8 {[%clk 0:00:22]}  Bxg2+ {[%clk 0:00:12]} 40. Bxg2 {[%clk 0:00:22]}  Rd1+ {[%clk 0:00:13]} 41. Bf1 {[%clk 0:00:22]}  Rxf1+ {[%clk 0:00:14]} 42. Kg2 {[%clk 0:00:22]}  Ra1 {[%clk 0:00:15]} 43. a8=Q {[%clk 0:00:23]}  Rxa8 {[%clk 0:00:15]} 44. Rxa8 {[%clk 0:00:24]}  f5 {[%clk 0:00:15]} 45. Ra6 {[%clk 0:00:23]}  Kh7 {[%clk 0:00:15]} 46. Kf3 {[%clk 0:00:24]}  Kg7 {[%clk 0:00:15]} 47. Ke3 {[%clk 0:00:24]}  Kf7 {[%clk 0:00:15]} 48. Kd4 {[%clk 0:00:25]}  f4 {[%clk 0:00:16]} 49. Ke4 {[%clk 0:00:25]}  Kg7 {[%clk 0:00:10]} 50. Kf5 {[%clk 0:00:25]} 1-0


[Site "https://www.chess.com"]

[Event "Titled Tuesday Blitz June 20 Early 2023"]
[White "Matveeva, Olga"]
[Black "Rastbod, Ali"]
[WhiteFideId "24107018"]
[BlackFideId "12567477"]
[WhiteElo "2009"]
[BlackElo "2281"]
[Result "0-1"]
[Round "2"]
[TimeControl "180+2"]
[Date "2023.06.20"]
[WhiteClock "0:00:00"]
[BlackClock "0:00:19"]
[Board "91"]

1. d4 {[%clk 0:03:00]}  Nf6 {[%clk 0:02:57]} 2. c4 {[%clk 0:03:01]}  e6 {[%clk 0:02:57]} 3. g3 {[%clk 0:03:01]}  c5 {[%clk 0:02:56]} 4. d5 {[%clk 0:03:01]}  exd5 {[%clk 0:02:57]} 5. cxd5 {[%clk 0:03:02]}  b5 {[%clk 0:02:57]} 6. e4 {[%clk 0:02:57]}  Nxe4 {[%clk 0:02:55]} 7. Bg2 {[%clk 0:02:45]}  Nd6 {[%clk 0:02:54]} 8. Nf3 {[%clk 0:02:44]}  Be7 {[%clk 0:02:53]} 9. O-O {[%clk 0:02:43]}  O-O {[%clk 0:02:51]} 10. Be3 {[%clk 0:02:28]}  Nc4 {[%clk 0:02:31]} 11. Nc3 {[%clk 0:02:21]}  a6 {[%clk 0:02:21]} 12. d6 {[%clk 0:02:08]}  Bf6 {[%clk 0:01:57]} 13. Bxc5 {[%clk 0:02:05]}  Nxb2 {[%clk 0:01:56]} 14. Qc2 {[%clk 0:01:59]}  Bxc3 {[%clk 0:01:52]} 15. Qxc3 {[%clk 0:01:53]}  Na4 {[%clk 0:01:52]} 16. Qc2 {[%clk 0:01:51]}  Nxc5 {[%clk 0:01:51]} 17. Qxc5 {[%clk 0:01:46]}  Bb7 {[%clk 0:01:49]} 18. Qh5 {[%clk 0:01:35]}  g6 {[%clk 0:01:41]} 19. Qh6 {[%clk 0:01:33]}  Bxf3 {[%clk 0:01:41]} 20. Bxf3 {[%clk 0:01:32]}  Nc6 {[%clk 0:01:42]} 21. Qf4 {[%clk 0:01:19]}  Rc8 {[%clk 0:01:39]} 22. h4 {[%clk 0:01:18]}  Re8 {[%clk 0:01:38]} 23. Bd5 {[%clk 0:01:13]}  Rf8 {[%clk 0:01:12]} 24. h5 {[%clk 0:01:13]}  a5 {[%clk 0:00:52]} 25. Kg2 {[%clk 0:01:05]}  g5 {[%clk 0:00:37]} 26. Qf5 {[%clk 0:00:51]}  Nd4 {[%clk 0:00:33]} 27. Qe5 {[%clk 0:00:33]}  Ne6 {[%clk 0:00:33]} 28. h6 {[%clk 0:00:24]}  Rc5 {[%clk 0:00:19]} 29. Rac1 {[%clk 0:00:20]}  Qb6 {[%clk 0:00:19]} 30. Rxc5 {[%clk 0:00:15]}  Qxc5 {[%clk 0:00:20]} 31. Rc1 {[%clk 0:00:13]}  Qd4 {[%clk 0:00:20]} 32. Qxd4 {[%clk 0:00:09]}  Nxd4 {[%clk 0:00:20]} 33. Rc7 {[%clk 0:00:09]}  Rd8 {[%clk 0:00:21]} 34. Rb7 {[%clk 0:00:08]}  b4 {[%clk 0:00:19]} 35. Ra7 {[%clk 0:00:08]}  Nf5 {[%clk 0:00:19]} 36. Rxa5 {[%clk 0:00:07]}  Nxd6 {[%clk 0:00:19]} 37. Ra7 {[%clk 0:00:06]}  Kf8 {[%clk 0:00:19]} 38. Kf3 {[%clk 0:00:05]}  Ke7 {[%clk 0:00:19]} 39. g4 {[%clk 0:00:05]}  Rc8 {[%clk 0:00:18]} 40. Ke3 {[%clk 0:00:05]}  Rc3+ {[%clk 0:00:17]} 41. Kd4 {[%clk 0:00:05]}  Nb5+ {[%clk 0:00:18]} 42. Ke5 {[%clk 0:00:00]}  Nxa7 {[%clk 0:00:19]} 0-1


[Site "https://www.chess.com"]

[Event "Titled Tuesday Blitz June 20 Early 2023"]
[White "Van Foreest, Machteld"]
[Black "Martinez Ramirez, Lennis"]
[WhiteFideId "1051563"]
[BlackFideId "3509079"]
[WhiteElo "2018"]
[BlackElo "2410"]
[Result "0-1"]
[Round "2"]
[TimeControl "180+2"]
[Date "2023.06.20"]
[WhiteClock "0:00:09"]
[BlackClock "0:00:33"]
[Board "92"]

1. e4 {[%clk 0:03:00]}  c6 {[%clk 0:02:55]} 2. Nf3 {[%clk 0:03:00]}  d5 {[%clk 0:02:56]} 3. d3 {[%clk 0:02:59]}  Bg4 {[%clk 0:02:54]} 4. h3 {[%clk 0:02:59]}  Bxf3 {[%clk 0:02:54]} 5. Qxf3 {[%clk 0:02:59]}  Nf6 {[%clk 0:02:53]} 6. e5 {[%clk 0:02:56]}  Nfd7 {[%clk 0:02:53]} 7. d4 {[%clk 0:02:54]}  e6 {[%clk 0:02:53]} 8. Bd3 {[%clk 0:02:53]}  c5 {[%clk 0:02:53]} 9. c3 {[%clk 0:02:53]}  cxd4 {[%clk 0:02:52]} 10. cxd4 {[%clk 0:02:53]}  Nc6 {[%clk 0:02:52]} 11. Qf4 {[%clk 0:02:41]}  Qb6 {[%clk 0:02:48]} 12. Nc3 {[%clk 0:02:16]}  Qxd4 {[%clk 0:02:44]} 13. Qxd4 {[%clk 0:02:11]}  Nxd4 {[%clk 0:02:45]} 14. Be3 {[%clk 0:02:12]}  Nxe5 {[%clk 0:02:41]} 15. Bxh7 {[%clk 0:01:24]}  Rxh7 {[%clk 0:02:22]} 16. Bxd4 {[%clk 0:01:22]}  Nc6 {[%clk 0:02:23]} 17. Nb5 {[%clk 0:01:15]}  Nxd4 {[%clk 0:02:09]} 18. Nxd4 {[%clk 0:01:01]}  Rc8 {[%clk 0:02:09]} 19. Kd2 {[%clk 0:00:58]}  e5 {[%clk 0:02:02]} 20. Nb5 {[%clk 0:00:53]}  Bb4+ {[%clk 0:02:01]} 21. Kd3 {[%clk 0:00:52]}  a6 {[%clk 0:01:58]} 22. Nc3 {[%clk 0:00:52]}  Bxc3 {[%clk 0:01:32]} 23. bxc3 {[%clk 0:00:53]}  Kd7 {[%clk 0:01:25]} 24. Rhe1 {[%clk 0:00:52]}  f6 {[%clk 0:01:24]} 25. Rab1 {[%clk 0:00:49]}  b5 {[%clk 0:01:18]} 26. Rb4 {[%clk 0:00:46]}  Rc4 {[%clk 0:01:16]} 27. f4 {[%clk 0:00:35]}  exf4 {[%clk 0:00:58]} 28. Rxc4 {[%clk 0:00:34]}  dxc4+ {[%clk 0:00:59]} 29. Ke4 {[%clk 0:00:32]}  g5 {[%clk 0:00:47]} 30. Kf5 {[%clk 0:00:26]}  f3 {[%clk 0:00:47]} 31. gxf3 {[%clk 0:00:20]}  Rxh3 {[%clk 0:00:47]} 32. Re3 {[%clk 0:00:16]}  a5 {[%clk 0:00:42]} 33. Kxf6 {[%clk 0:00:16]}  g4 {[%clk 0:00:42]} 34. Re7+ {[%clk 0:00:16]}  Kd6 {[%clk 0:00:42]} 35. Re6+ {[%clk 0:00:16]}  Kd7 {[%clk 0:00:36]} 36. Re7+ {[%clk 0:00:17]}  Kd8 {[%clk 0:00:36]} 37. fxg4 {[%clk 0:00:14]}  Rf3+ {[%clk 0:00:35]} 38. Ke6 {[%clk 0:00:09]}  Re3+ {[%clk 0:00:33]} 0-1


[Site "https://www.chess.com"]

[Event "Titled Tuesday Blitz June 20 Early 2023"]
[White "Perez Rodriguez, Jennifer"]
[Black "Itgelt, Khuyagtsogt"]
[WhiteFideId "3507831"]
[BlackFideId "4902912"]
[WhiteElo "2116"]
[BlackElo "2227"]
[Result "0-1"]
[Round "2"]
[TimeControl "180+2"]
[Date "2023.06.20"]
[WhiteClock "0:00:12"]
[BlackClock "0:00:27"]
[Board "94"]

1. e4 {[%clk 0:02:57]}  e6 {[%clk 0:02:58]} 2. d4 {[%clk 0:02:55]}  d5 {[%clk 0:02:58]} 3. Bd3 {[%clk 0:02:50]}  c5 {[%clk 0:02:47]} 4. exd5 {[%clk 0:02:49]}  exd5 {[%clk 0:02:48]} 5. Nf3 {[%clk 0:02:48]}  c4 {[%clk 0:02:48]} 6. Be2 {[%clk 0:02:46]}  Bd6 {[%clk 0:02:47]} 7. O-O {[%clk 0:02:45]}  Nf6 {[%clk 0:02:45]} 8. b3 {[%clk 0:02:45]}  cxb3 {[%clk 0:02:45]} 9. axb3 {[%clk 0:02:46]}  O-O {[%clk 0:02:45]} 10. c4 {[%clk 0:02:45]}  Nc6 {[%clk 0:02:41]} 11. Nc3 {[%clk 0:02:45]}  Bb4 {[%clk 0:02:35]} 12. Bb2 {[%clk 0:02:40]}  Re8 {[%clk 0:02:25]} 13. Nxd5 {[%clk 0:02:37]}  Nxd5 {[%clk 0:02:26]} 14. cxd5 {[%clk 0:02:38]}  Qxd5 {[%clk 0:02:23]} 15. Bc4 {[%clk 0:02:38]}  Qd8 {[%clk 0:02:09]} 16. d5 {[%clk 0:02:35]}  Na5 {[%clk 0:02:09]} 17. Qd4 {[%clk 0:02:28]}  Bf8 {[%clk 0:02:09]} 18. Bd3 {[%clk 0:02:23]}  b6 {[%clk 0:02:02]} 19. Bc2 {[%clk 0:02:05]}  Ba6 {[%clk 0:01:42]} 20. Rfe1 {[%clk 0:02:03]}  Rc8 {[%clk 0:01:40]} 21. Rxe8 {[%clk 0:01:37]}  Qxe8 {[%clk 0:01:41]} 22. Re1 {[%clk 0:01:21]}  Qd7 {[%clk 0:01:24]} 23. Qe4 {[%clk 0:01:17]}  g6 {[%clk 0:00:50]} 24. Ne5 {[%clk 0:00:57]}  Qc7 {[%clk 0:00:47]} 25. Ng4 {[%clk 0:00:53]}  Qxc2 {[%clk 0:00:39]} 26. Nf6+ {[%clk 0:00:53]}  Kh8 {[%clk 0:00:39]} 27. Nd7+ {[%clk 0:00:32]}  Qxb2 {[%clk 0:00:37]} 28. Nxf8 {[%clk 0:00:22]}  Rxf8 {[%clk 0:00:38]} 29. d6 {[%clk 0:00:21]}  Qf6 {[%clk 0:00:34]} 30. d7 {[%clk 0:00:20]}  Kg7 {[%clk 0:00:33]} 31. Qe8 {[%clk 0:00:18]}  Bb5 {[%clk 0:00:28]} 32. Qxf8+ {[%clk 0:00:12]}  Kxf8 {[%clk 0:00:27]} 33. Re8+ {[%clk 0:00:13]}  Kg7 {[%clk 0:00:27]} 34. d8=Q {[%clk 0:00:12]}  Qa1+ {[%clk 0:00:27]} 0-1


[Site "https://www.chess.com"]

[Event "Titled Tuesday Blitz June 20 Early 2023"]
[White "Postny, Evgeny"]
[Black "Zilleruelo Irizarry, Diego"]
[WhiteFideId "2804344"]
[BlackFideId "3101460"]
[WhiteElo "2504"]
[BlackElo "2009"]
[Result "1-0"]
[Round "2"]
[TimeControl "180+2"]
[Date "2023.06.20"]
[WhiteClock "0:00:23"]
[BlackClock "0:00:00"]
[Board "95"]

1. e4 {[%clk 0:03:00]}  c6 {[%clk 0:02:36]} 2. d4 {[%clk 0:03:00]}  d5 {[%clk 0:02:37]} 3. Nc3 {[%clk 0:02:59]}  dxe4 {[%clk 0:02:37]} 4. Nxe4 {[%clk 0:03:00]}  Bf5 {[%clk 0:02:37]} 5. Ng3 {[%clk 0:02:58]}  Bg6 {[%clk 0:02:37]} 6. h4 {[%clk 0:02:58]}  h6 {[%clk 0:02:38]} 7. Nf3 {[%clk 0:02:58]}  Nd7 {[%clk 0:02:37]} 8. Bd3 {[%clk 0:02:56]}  Bxd3 {[%clk 0:02:37]} 9. Qxd3 {[%clk 0:02:57]}  e6 {[%clk 0:02:37]} 10. Bf4 {[%clk 0:02:57]}  Ngf6 {[%clk 0:02:14]} 11. O-O-O {[%clk 0:02:56]}  Qa5 {[%clk 0:02:12]} 12. Kb1 {[%clk 0:02:55]}  Nd5 {[%clk 0:02:10]} 13. Bd2 {[%clk 0:02:53]}  Qc7 {[%clk 0:01:56]} 14. c4 {[%clk 0:02:45]}  N5f6 {[%clk 0:01:56]} 15. Bc3 {[%clk 0:02:41]}  O-O-O {[%clk 0:01:56]} 16. Qe2 {[%clk 0:02:38]}  Bd6 {[%clk 0:01:55]} 17. Ne4 {[%clk 0:02:37]}  Nxe4 {[%clk 0:01:55]} 18. Qxe4 {[%clk 0:02:38]}  Nf6 {[%clk 0:01:55]} 19. Qe2 {[%clk 0:02:38]}  Rhe8 {[%clk 0:01:56]} 20. a3 {[%clk 0:02:27]}  c5 {[%clk 0:01:47]} 21. Rhe1 {[%clk 0:02:19]}  cxd4 {[%clk 0:01:42]} 22. Nxd4 {[%clk 0:02:20]}  a6 {[%clk 0:01:42]} 23. Nb3 {[%clk 0:02:08]}  Qc6 {[%clk 0:01:27]} 24. g3 {[%clk 0:02:03]}  Bc7 {[%clk 0:01:24]} 25. Nd4 {[%clk 0:01:53]}  Qc5 {[%clk 0:01:23]} 26. b4 {[%clk 0:01:52]}  Qh5 {[%clk 0:01:14]} 27. Qxh5 {[%clk 0:01:45]}  Nxh5 {[%clk 0:01:15]} 28. Kc2 {[%clk 0:01:43]}  Nf6 {[%clk 0:01:08]} 29. Nf3 {[%clk 0:01:40]}  Rxd1 {[%clk 0:01:06]} 30. Rxd1 {[%clk 0:01:39]}  Rd8 {[%clk 0:01:07]} 31. Rxd8+ {[%clk 0:01:38]}  Kxd8 {[%clk 0:01:08]} 32. Ne5 {[%clk 0:01:32]}  Ke7 {[%clk 0:01:02]} 33. Kd3 {[%clk 0:01:31]}  g6 {[%clk 0:00:42]} 34. a4 {[%clk 0:01:27]}  Bxe5 {[%clk 0:00:37]} 35. Bxe5 {[%clk 0:01:27]}  Ng4 {[%clk 0:00:38]} 36. Bd4 {[%clk 0:01:26]}  e5 {[%clk 0:00:36]} 37. f3 {[%clk 0:01:15]}  Nh2 {[%clk 0:00:14]} 38. Bxe5 {[%clk 0:00:47]}  Nxf3 {[%clk 0:00:14]} 39. Bc3 {[%clk 0:00:46]}  h5 {[%clk 0:00:09]} 40. c5 {[%clk 0:00:39]}  Ke6 {[%clk 0:00:08]} 41. Kc4 {[%clk 0:00:39]}  f6 {[%clk 0:00:06]} 42. b5 {[%clk 0:00:39]}  g5 {[%clk 0:00:05]} 43. c6 {[%clk 0:00:27]}  axb5+ {[%clk 0:00:04]} 44. Kxb5 {[%clk 0:00:28]}  bxc6+ {[%clk 0:00:04]} 45. Kxc6 {[%clk 0:00:29]}  gxh4 {[%clk 0:00:05]} 46. gxh4 {[%clk 0:00:29]}  Nxh4 {[%clk 0:00:03]} 47. a5 {[%clk 0:00:29]}  Nf5 {[%clk 0:00:00]} 48. a6 {[%clk 0:00:23]} 1-0


[Site "https://www.chess.com"]

[Event "Titled Tuesday Blitz June 20 Early 2023"]
[White "Suarez Uriel, Adrian"]
[Black "Begmuratov, Alisher"]
[WhiteFideId "22230874"]
[BlackFideId "14203367"]
[WhiteElo "2331"]
[BlackElo "2387"]
[Result "0-1"]
[Round "2"]
[TimeControl "180+2"]
[Date "2023.06.20"]
[WhiteClock "0:00:16"]
[BlackClock "0:01:16"]
[Board "96"]

1. d4 {[%clk 0:03:00]}  d5 {[%clk 0:02:59]} 2. c4 {[%clk 0:02:59]}  e6 {[%clk 0:02:59]} 3. Nf3 {[%clk 0:02:58]}  Nf6 {[%clk 0:02:59]} 4. Nc3 {[%clk 0:02:58]}  Be7 {[%clk 0:03:00]} 5. Bg5 {[%clk 0:02:57]}  O-O {[%clk 0:03:00]} 6. e3 {[%clk 0:02:57]}  Nbd7 {[%clk 0:02:59]} 7. Rc1 {[%clk 0:02:50]}  c6 {[%clk 0:02:59]} 8. Bd3 {[%clk 0:02:47]}  dxc4 {[%clk 0:02:58]} 9. Bxc4 {[%clk 0:02:47]}  Nd5 {[%clk 0:02:59]} 10. Bxe7 {[%clk 0:02:45]}  Qxe7 {[%clk 0:02:59]} 11. O-O {[%clk 0:02:45]}  b6 {[%clk 0:02:55]} 12. e4 {[%clk 0:02:46]}  Nxc3 {[%clk 0:02:53]} 13. Rxc3 {[%clk 0:02:41]}  Bb7 {[%clk 0:02:53]} 14. e5 {[%clk 0:02:12]}  Rfd8 {[%clk 0:02:52]} 15. Nd2 {[%clk 0:02:02]}  c5 {[%clk 0:02:49]} 16. Rg3 {[%clk 0:01:24]}  cxd4 {[%clk 0:02:41]} 17. Qg4 {[%clk 0:01:23]}  g6 {[%clk 0:02:41]} 18. Re1 {[%clk 0:01:19]}  Rac8 {[%clk 0:02:25]} 19. h4 {[%clk 0:01:18]}  Qb4 {[%clk 0:02:11]} 20. Bxe6 {[%clk 0:00:49]}  Qxd2 {[%clk 0:02:10]} 21. Rd1 {[%clk 0:00:48]}  Rc1 {[%clk 0:02:05]} 22. Bxf7+ {[%clk 0:00:45]}  Kxf7 {[%clk 0:01:59]} 23. e6+ {[%clk 0:00:35]}  Kg8 {[%clk 0:01:58]} 24. Rxc1 {[%clk 0:00:35]}  Qxc1+ {[%clk 0:01:58]} 25. Kh2 {[%clk 0:00:36]}  Ne5 {[%clk 0:01:37]} 26. Qe2 {[%clk 0:00:29]}  Qf4 {[%clk 0:01:37]} 27. h5 {[%clk 0:00:25]}  d3 {[%clk 0:01:34]} 28. Qd1 {[%clk 0:00:20]}  Re8 {[%clk 0:01:29]} 29. hxg6 {[%clk 0:00:20]}  hxg6 {[%clk 0:01:28]} 30. Qb3 {[%clk 0:00:19]}  Ng4+ {[%clk 0:01:24]} 31. Kh3 {[%clk 0:00:18]}  Nxf2+ {[%clk 0:01:19]} 32. Kh2 {[%clk 0:00:16]}  Qh4+ {[%clk 0:01:16]} 0-1


[Site "https://www.chess.com"]